bitfinex/quotes_BTCUSD_20240728
["timestamp","ask_amount","ask_price","bid_price","bid_amount"]
[1722161294292,0.20044552,67635.0,67634.0,0.003]
[1722161294293,0.79179135,67635.0,67634.0,0.003]
[1722161294494,0.66601759,67635.0,67634.0,0.003]
[1722161294699,0.40836001,67635.0,67634.0,0.003]
[1722161294917,0.29007901,67635.0,67634.0,0.003]
[1722161295088,0.29115523,67635.0,67634.0,0.001]
[1722161295324,0.38513845,67635.0,67634.0,0.001]
[1722161295530,0.1437,67634.0,67630.0,0.000913]
[1722161295704,0.12102558,67633.0,67630.0,0.000913]
[1722161295934,0.05668435,67632.0,67630.0,0.000913]
[1722161296104,0.13872558,67631.0,67630.0,0.000913]
[1722161296320,0.13738435,67631.0,67630.0,0.000913]
[1722161296930,0.13738435,67631.0,67630.0,0.001913]
[1722161297287,0.13634266,67631.0,67630.0,0.001913]
[1722161297937,0.13634266,67631.0,67630.0,0.002913]
[1722161298440,0.13634266,67631.0,67630.0,0.001913]
[1722161298651,0.13634266,67631.0,67630.0,0.002913]
[1722161298842,0.13634266,67631.0,67630.0,0.001913]
[1722161299426,0.13634266,67631.0,67630.0,0.002913]
[1722161301031,0.13622905,67631.0,67630.0,0.002913]
[1722161302340,0.13622905,67631.0,67629.0,0.118292]
[1722161302597,0.05552905,67630.0,67629.0,0.118292]
[1722161302805,0.05644846,67630.0,67629.0,0.118292]
[1722161302982,0.05644846,67630.0,67626.0,0.00915953]
[1722161303177,0.05545234,67629.0,67628.0,0.118293]
[1722161303381,0.05545234,67630.0,67628.0,0.118293]
[1722161303795,0.0807,67631.0,67628.0,0.118293]
[1722161303968,0.05543463,67630.0,67629.0,0.118292]
[1722161304174,0.05643463,67630.0,67629.0,0.119292]
[1722161304658,0.13156442,67630.0,67629.0,0.119292]
[1722161305053,0.27666442,67630.0,67629.0,0.001]
[1722161305242,0.27466442,67630.0,67628.0,0.118293]
[1722161305458,0.22022979,67630.0,67629.0,0.120292]
[1722161305610,0.27566994,67630.0,67629.0,0.120292]
[1722161305811,0.27566994,67630.0,67629.0,0.119292]
[1722161306408,0.27566994,67630.0,67629.0,0.120292]
[1722161306581,0.20054015,67630.0,67629.0,0.120292]
[1722161306786,0.20054015,67630.0,67629.0,0.119292]
[1722161307159,0.20054015,67630.0,67629.0,0.118292]
[1722161307160,0.19955805,67630.0,67629.0,0.118292]
[1722161307687,0.19955805,67630.0,67625.0,0.0088302]
[1722161307840,0.05545805,67629.0,67627.0,0.118294]
[1722161310679,0.05645805,67629.0,67628.0,0.118294]
[1722161310877,0.001,67629.0,67628.0,0.118294]
[1722161311074,0.001,67629.0,67625.0,0.236597]
[1722161311075,0.05568648,67629.0,67627.0,0.118295]
[1722161311421,0.05668648,67629.0,67627.0,0.118295]
[1722161311555,0.05568648,67628.0,67627.0,0.118295]
[1722161312535,0.0787,67628.0,67625.0,0.236597]
[1722161312803,0.0787,67626.0,67623.0,0.118302]
[1722161312925,0.05568648,67625.0,67623.0,0.118302]
[1722161313544,0.0787,67626.0,67623.0,0.118302]
[1722161313749,0.05579924,67625.0,67623.0,0.118302]
[1722161314172,0.05579924,67625.0,67622.0,0.118303]
[1722161315326,0.05579924,67625.0,67622.0,0.119303]
[1722161315891,0.05579924,67625.0,67623.0,0.001]
[1722161316247,0.05579924,67625.0,67623.0,0.118302]
[1722161316667,0.05579924,67625.0,67622.0,0.002]
[1722161317029,0.05600715,67624.0,67622.0,0.120304]
[1722161317207,0.05600715,67623.0,67622.0,0.120304]
[1722161317428,0.05600715,67623.0,67622.0,0.119304]
[1722161317582,0.05600715,67625.0,67622.0,0.119304]
[1722161317981,0.05600715,67625.0,67622.0,0.119217]
[1722161318369,0.05600715,67625.0,67624.0,0.118301]
[1722161320052,0.05600715,67625.0,67624.0,0.119301]
[1722161320443,0.0560532,67625.0,67624.0,0.119301]
[1722161320943,0.05591678,67625.0,67624.0,0.120301]
[1722161321559,0.05591678,67625.0,67624.0,0.356903]
[1722161322259,0.05591678,67625.0,67624.0,0.120301]
[1722161323029,0.05591678,67625.0,67624.0,0.356903]
[1722161323567,0.0787,67626.0,67625.0,0.118299]
[1722161323800,0.13448391,67626.0,67625.0,0.118299]
[1722161323972,0.13448391,67626.0,67625.0,0.354897]
[1722161325547,0.0819,67624.0,67622.0,0.000913]
[1722161325787,0.05578391,67623.0,67622.0,0.119217]
[1722161326868,0.05611093,67623.0,67622.0,0.121217]
[1722161327275,0.31831293,67623.0,67622.0,0.000913]
[1722161329599,0.55491793,67623.0,67622.0,0.000913]
[1722161330326,0.83008995,67623.0,67622.0,0.000913]
[1722161330492,0.88101125,67623.0,67622.0,0.000913]
[1722161330900,1.11908763,67623.0,67622.0,0.000913]
[1722161331128,0.88248263,67623.0,67622.0,0.000913]
[1722161331501,0.88348263,67623.0,67622.0,0.000913]
[1722161331944,1.12008763,67623.0,67622.0,0.000913]
[1722161333465,1.12028829,67623.0,67622.0,0.000913]
[1722161333667,1.40363188,67623.0,67622.0,0.000913]
[1722161333868,1.27054786,67623.0,67622.0,0.000913]
[1722161334162,1.65687238,67623.0,67622.0,0.000913]
[1722161334358,1.50715286,67623.0,67622.0,0.000913]
[1722161335505,1.51015286,67623.0,67622.0,0.001913]
[1722161335835,1.50715286,67623.0,67622.0,0.001913]
[1722161336281,1.66071126,67623.0,67622.0,0.002913]
[1722161336705,1.65671126,67623.0,67622.0,0.001913]
[1722161337104,1.65571126,67623.0,67622.0,0.000913]
[1722161337315,1.50615286,67623.0,67622.0,0.000913]
[1722161337506,1.28354786,67623.0,67622.0,0.000913]
[1722161337661,1.26954786,67623.0,67622.0,0.000913]
[1722161338099,1.29754786,67623.0,67622.0,0.000913]
[1722161338304,1.28354786,67623.0,67622.0,0.000913]
[1722161338905,1.29754786,67623.0,67622.0,0.000913]
[1722161339101,1.28354786,67623.0,67622.0,0.000913]
[1722161339348,1.39425973,67623.0,67622.0,0.000913]
[1722161339487,1.26954786,67623.0,67622.0,0.000913]
[1722161339895,1.26965733,67623.0,67622.0,0.000913]
[1722161340111,1.13339776,67623.0,67622.0,0.000913]
[1722161340456,0.52614879,67623.0,67622.0,0.000913]
[1722161340691,0.75860885,67623.0,67622.0,0.000913]
[1722161340801,0.74460885,67623.0,67622.0,0.000913]
[1722161341001,1.05661385,67623.0,67622.0,0.000913]
[1722161341205,0.82000885,67623.0,67622.0,0.000913]
[1722161341402,0.80600885,67623.0,67622.0,0.000913]
[1722161341629,0.82000885,67623.0,67622.0,0.000913]
[1722161342241,0.81986244,67623.0,67622.0,0.000913]
[1722161345417,0.82012388,67623.0,67622.0,0.000913]
[1722161347077,0.58351888,67623.0,67622.0,0.000913]
[1722161347701,0.28551388,67623.0,67622.0,0.000913]
[1722161348128,0.52211888,67623.0,67622.0,0.000913]
[1722161348543,0.464807,67623.0,67622.0,0.000913]
[1722161348747,0.52276614,67623.0,67622.0,0.000913]
[1722161350156,0.52276614,67623.0,67622.0,0.147613]
[1722161350157,0.08595914,67623.0,67622.0,0.147613]
[1722161351386,0.07195914,67623.0,67622.0,0.147613]
[1722161351583,0.07195914,67623.0,67622.0,0.148613]
[1722161351584,0.06995914,67623.0,67622.0,0.148613]
[1722161351884,0.012,67623.0,67622.0,0.148613]
[1722161352105,0.06862072,67623.0,67622.0,0.147613]
[1722161352481,0.05862071,67623.0,67622.0,0.147613]
[1722161352650,0.05862071,67623.0,67622.0,0.265917]
[1722161352651,0.06262071,67623.0,67622.0,0.265917]
[1722161352825,0.06762071,67623.0,67622.0,0.265917]
[1722161353401,0.06762071,67623.0,67622.0,0.502526]
[1722161353545,0.06762071,67623.0,67622.0,0.147613]
[1722161353736,0.06762071,67623.0,67622.0,0.065313]
[1722161354185,0.06762071,67623.0,67622.0,0.420226]
[1722161354394,0.06762071,67623.0,67622.0,0.656835]
[1722161354589,0.06762071,67623.0,67622.0,0.739135]
[1722161355274,0.06807093,67623.0,67622.0,0.502526]
[1722161355444,0.06807093,67623.0,67622.0,0.265917]
[1722161355651,0.06807093,67623.0,67622.0,0.147613]
[1722161355652,0.06307093,67623.0,67622.0,0.147613]
[1722161355869,0.05907093,67623.0,67622.0,0.265917]
[1722161356069,0.05907093,67623.0,67622.0,0.266917]
[1722161356882,0.13977093,67623.0,67622.0,0.001913]
[1722161357130,0.13977093,67623.0,67622.0,0.120217]
[1722161357327,0.05907093,67623.0,67622.0,0.120217]
[1722161357922,0.05907093,67623.0,67622.0,0.119217]
[1722161358118,0.05907093,67623.0,67622.0,0.000913]
[1722161358335,0.0636606,67623.0,67622.0,0.000913]
[1722161359687,0.0676606,67623.0,67622.0,0.000913]
[1722161360848,0.0636606,67623.0,67622.0,0.000913]
[1722161361270,0.0586606,67623.0,67622.0,0.000913]
[1722161361621,0.05875076,67623.0,67622.0,0.000913]
[1722161361794,0.05875076,67625.0,67622.0,0.000913]
[1722161361982,0.005,67623.0,67622.0,0.000913]
[1722161362170,0.005,67623.0,67622.0,0.081013]
[1722161362171,0.009,67623.0,67622.0,0.081013]
[1722161362350,0.06773589,67623.0,67622.0,0.500426]
[1722161362903,0.06373589,67623.0,67622.0,0.500426]
[1722161363098,0.06360897,67623.0,67622.0,0.500426]
[1722161363745,0.05860897,67623.0,67622.0,0.500426]
[1722161363887,0.05893463,67629.0,67624.0,0.118299]
[1722161364102,0.17722663,67629.0,67624.0,0.118299]
[1722161364346,0.05893463,67628.0,67624.0,0.118299]
[1722161364745,0.118292,67629.0,67624.0,0.118299]
[1722161364947,0.0589875,67628.0,67624.0,0.118299]
[1722161365193,0.1772815,67628.0,67622.0,0.145513]
[1722161365354,0.0589875,67627.0,67623.0,0.118302]
[1722161367001,0.0619875,67627.0,67623.0,0.118302]
[1722161367222,0.0589875,67626.0,67623.0,0.118302]
[1722161367417,0.0589875,67625.0,67623.0,0.118302]
[1722161367677,0.0589875,67624.0,67623.0,0.118302]
[1722161368345,0.05884202,67626.0,67623.0,0.118302]
[1722161368555,0.05884202,67625.0,67623.0,0.118302]
[1722161369075,0.05884202,67625.0,67623.0,0.119302]
[1722161369409,0.05884202,67625.0,67623.0,0.118302]
[1722161369622,0.05884202,67624.0,67623.0,0.118302]
[1722161370050,0.05884202,67627.0,67623.0,0.118302]
[1722161370312,0.05884202,67626.0,67623.0,0.118302]
[1722161370521,0.193794,67628.0,67622.0,0.145513]
[1722161370522,0.05884202,67625.0,67622.0,0.145513]
[1722161370717,0.05884202,67624.0,67622.0,0.000913]
[1722161370917,0.19684202,67623.0,67622.0,0.000913]
[1722161371550,0.31527786,67623.0,67622.0,0.000913]
[1722161371889,0.256302,67623.0,67622.0,0.000913]
[1722161372090,0.19706139,67623.0,67622.0,0.000913]
[1722161372554,0.78857339,67623.0,67622.0,0.000913]
[1722161372727,0.89773635,67623.0,67622.0,0.000913]
[1722161372882,0.89773635,67623.0,67622.0,0.002913]
[1722161373092,0.99000154,67623.0,67622.0,0.002913]
[1722161373295,0.88083858,67623.0,67622.0,0.000913]
[1722161374528,0.88283858,67623.0,67622.0,0.000913]
[1722161374845,0.88083858,67623.0,67622.0,0.000913]
[1722161375284,0.97446289,67623.0,67622.0,0.000913]
[1722161375585,0.88583858,67623.0,67622.0,0.000913]
[1722161375785,0.89483858,67623.0,67622.0,0.000913]
[1722161376081,0.88983858,67623.0,67622.0,0.000913]
[1722161376306,0.88583858,67623.0,67622.0,0.000913]
[1722161376484,0.90083858,67623.0,67622.0,0.001913]
[1722161377786,0.88683858,67623.0,67622.0,0.000913]
[1722161377986,0.88683858,67623.0,67622.0,0.001913]
[1722161377987,0.89440595,67623.0,67622.0,0.001913]
[1722161379798,0.742512,67623.0,67622.0,0.001913]
[1722161380000,0.89439626,67623.0,67622.0,0.001913]
[1722161380618,0.89440098,67623.0,67622.0,0.001913]
[1722161381211,0.96089234,67623.0,67622.0,0.001913]
[1722161381415,0.80901869,67623.0,67622.0,0.001913]
[1722161381565,0.96071441,67623.0,67622.0,0.001913]
[1722161381980,0.89420772,67623.0,67622.0,0.001913]
[1722161383218,0.98288331,67623.0,67622.0,0.001913]
[1722161384188,0.89420772,67623.0,67622.0,0.001913]
[1722161385341,1.00514324,67623.0,67622.0,0.001913]
[1722161388036,0.89416278,67623.0,67622.0,0.001913]
[1722161388277,1.00512353,67623.0,67622.0,0.001913]
[1722161389025,0.27561153,67623.0,67622.0,0.001913]
[1722161389279,0.19068814,67623.0,67622.0,0.001913]
[1722161391341,0.131302,67623.0,67622.0,0.001913]
[1722161391566,0.19125839,67623.0,67622.0,0.001913]
[1722161391789,0.1912584,67623.0,67622.0,0.001913]
[1722161393416,0.63495563,67623.0,67622.0,0.001913]
[1722161393648,0.5683634,67623.0,67622.0,0.001913]
[1722161393888,0.65699259,67623.0,67622.0,0.001913]
[1722161394363,0.42038759,67623.0,67622.0,0.001913]
[1722161394589,0.26949462,67623.0,67622.0,0.001913]
[1722161395080,0.33608883,67623.0,67622.0,0.001913]
[1722161397779,0.33602464,67623.0,67622.0,0.001913]
[1722161398003,0.21772264,67623.0,67622.0,0.001913]
[1722161398994,0.33602464,67623.0,67622.0,0.001913]
[1722161399737,0.21772264,67623.0,67622.0,0.001913]
[1722161399937,0.13922264,67623.0,67622.0,0.001913]
[1722161400910,0.13922369,67623.0,67622.0,0.001913]
[1722161401277,0.07253238,67623.0,67622.0,0.001913]
[1722161401481,0.13912744,67623.0,67622.0,0.001913]
[1722161402257,0.07253238,67623.0,67622.0,0.735235]
[1722161402450,0.07253238,67623.0,67622.0,1.12210357]
[1722161403115,0.013,67623.0,67622.0,1.12210357]
[1722161403333,0.013,67623.0,67622.0,1.12110357]
[1722161403334,0.006,67623.0,67622.0,1.12110357]
[1722161403540,0.006,67623.0,67622.0,1.44672257]
[1722161403896,0.00083,67630.0,67622.0,1.44672257]
[1722161403897,0.00083,67630.0,67622.0,1.45141857]
[1722161404008,0.00083,67630.0,67629.0,0.969844]
[1722161404212,0.00083,67630.0,67629.0,1.12010357]
[1722161405940,0.00283,67630.0,67629.0,1.12710357]
[1722161407286,0.00183,67630.0,67629.0,1.12010357]
[1722161407649,0.00183,67630.0,67629.0,1.68228157]
[1722161407855,0.002,67639.0,67637.0,1.058756]
[1722161408069,0.002,67639.0,67637.0,1.33201557]
[1722161408289,0.002,67639.0,67637.0,1.56857157]
[1722161409093,0.00934,67638.0,67637.0,1.57457157]
[1722161409497,0.00834,67638.0,67637.0,1.56857157]
[1722161409699,0.00934,67638.0,67637.0,1.57457157]
[1722161410720,0.01034,67638.0,67637.0,1.57457157]
[1722161416372,0.01034,67638.0,67637.0,1.58363579]
[1722161422932,0.01034,67638.0,67637.0,1.18227979]
[1722161440987,0.09284,67638.0,67637.0,1.18227979]
[1722161441208,0.09284,67638.0,67637.0,1.09326979]
[1722161442302,0.01034,67638.0,67637.0,1.09326979]
[1722161450588,0.21308289,67638.0,67637.0,1.09326979]
[1722161451138,0.15514,67638.0,67637.0,1.09326979]
[1722161453454,0.09284,67638.0,67637.0,1.09326979]
[1722161465083,0.01034,67638.0,67637.0,1.09326979]
[1722161467043,0.00834,67641.0,67640.0,0.680285]
[1722161467205,0.00834,67641.0,67640.0,0.99544457]
[1722161467548,0.00834,67641.0,67640.0,1.56853657]
[1722161468372,0.00934,67641.0,67640.0,1.63671313]
[1722161468517,0.00934,67641.0,67640.0,1.59253657]
[1722161468717,0.00833,67651.0,67640.0,1.56853657]
[1722161468925,0.00833,67651.0,67646.0,1.295182]
[1722161469115,0.00833,67651.0,67646.0,1.46844157]
[1722161469317,0.00833,67651.0,67646.0,1.56844157]
[1722161471138,0.00833,67651.0,67646.0,1.57944157]
[1722161471351,0.00833,67651.0,67646.0,1.56844157]
[1722161471738,0.00833,67651.0,67646.0,1.58244157]
[1722161472396,0.00833,67651.0,67646.0,1.59644157]
[1722161472792,0.00833,67651.0,67646.0,1.83296657]
[1722161472992,0.00833,67651.0,67646.0,1.83496657]
[1722161473215,0.00833,67653.0,67651.0,0.286073]
[1722161473374,0.00833,67653.0,67652.0,0.74518]
[1722161473579,0.00833,67653.0,67652.0,1.56834757]
[1722161473778,0.00833,67653.0,67652.0,1.94368923]
[1722161473978,0.00833,67653.0,67652.0,2.11062392]
[1722161474183,0.00833,67653.0,67652.0,2.1327239]
[1722161474381,0.00833,67653.0,67652.0,2.3692279]
[1722161474793,0.00833,67653.0,67652.0,2.15854331]
[1722161475083,0.00833,67653.0,67652.0,1.95368923]
[1722161475284,0.00833,67653.0,67652.0,1.95168923]
[1722161476005,0.00833,67653.0,67652.0,1.96568923]
[1722161476206,0.00833,67653.0,67652.0,1.95168923]
[1722161476410,0.00833,67653.0,67652.0,2.10758923]
[1722161476788,0.00833,67653.0,67652.0,2.33409323]
[1722161477209,0.00833,67653.0,67652.0,2.35009323]
[1722161477870,0.00833,67653.0,67652.0,2.33609323]
[1722161478008,0.00833,67653.0,67652.0,2.35009323]
[1722161478352,0.00833,67653.0,67652.0,2.36409323]
[1722161478868,0.00833,67653.0,67652.0,1.99075157]
[1722161480639,0.00833,67653.0,67652.0,1.75224757]
[1722161481193,0.00833,67653.0,67652.0,1.69606534]
[1722161481395,0.00833,67653.0,67652.0,1.49550682]
[1722161481604,0.00833,67653.0,67652.0,1.45444757]
[1722161483638,0.15333,67653.0,67652.0,1.10602357]
[1722161483864,0.15333,67653.0,67652.0,1.07802357]
[1722161484106,0.15333,67653.0,67652.0,1.09202357]
[1722161484335,0.15333,67653.0,67652.0,1.19494357]
[1722161484560,0.15333,67653.0,67652.0,1.18094357]
[1722161485042,0.00833,67653.0,67652.0,1.21794357]
[1722161509674,0.00833,67653.0,67652.0,1.21886757]
[1722161521548,0.00833,67653.0,67652.0,1.45537157]
[1722161521762,0.00833,67653.0,67652.0,1.21886757]
[1722161523056,0.00833,67653.0,67652.0,1.45537157]
[1722161523932,0.00833,67653.0,67652.0,1.21886757]
[1722161523933,0.08913,67653.0,67652.0,1.21886757]
[1722161524068,0.14933,67653.0,67652.0,1.21886757]
[1722161527721,0.00833,67653.0,67652.0,1.21886757]
[1722161530954,0.00833,67653.0,67652.0,1.45537157]
[1722161531154,0.00833,67653.0,67652.0,1.21886757]
[1722161532564,0.00833,67653.0,67652.0,1.45537157]
[1722161533236,0.00833,67653.0,67652.0,1.49951013]
[1722161533461,0.00833,67653.0,67652.0,1.45537157]
[1722161550094,0.00833,67653.0,67652.0,1.53487157]
[1722161550285,0.00833,67653.0,67652.0,1.45537157]
[1722161551256,0.00833,67653.0,67652.0,1.64458866]
[1722161551427,0.00833,67653.0,67652.0,1.71278859]
[1722161551631,0.00833,67653.0,67652.0,1.64658866]
[1722161551859,0.00833,67653.0,67652.0,1.52177157]
[1722161552002,0.00833,67653.0,67652.0,1.71077033]
[1722161552202,0.00833,67653.0,67652.0,1.58795736]
[1722161552405,0.00833,67653.0,67652.0,1.64458758]
[1722161552814,0.00833,67653.0,67652.0,1.52177157]
[1722161553215,0.00833,67653.0,67652.0,1.4995002]
[1722161553873,0.00833,67653.0,67652.0,1.45537157]
[1722161554256,0.00833,67653.0,67652.0,1.62231857]
[1722161554470,0.00833,67653.0,67652.0,1.45537157]
[1722161556731,0.08623,67653.0,67652.0,1.45537157]
[1722161557520,0.15023,67653.0,67652.0,1.45537157]
[1722161563501,0.08623,67653.0,67652.0,1.45537157]
[1722161563712,0.00833,67653.0,67652.0,1.45537157]
[1722161575812,0.14473,67653.0,67652.0,1.45537157]
[1722161576611,0.08413,67653.0,67652.0,1.45537157]
[1722161595027,0.14833,67653.0,67652.0,1.45537157]
[1722161596355,0.14833,67653.0,67652.0,1.21886757]
[1722161607197,0.14833,67653.0,67652.0,0.63393957]
[1722161607433,0.20602456,67653.0,67652.0,0.63393957]
[1722161607602,0.20602456,67653.0,67652.0,0.87044357]
[1722161608529,0.20602456,67653.0,67652.0,1.10694757]
[1722161608874,0.14182456,67653.0,67652.0,1.10694757]
[1722161609003,0.08413,67653.0,67652.0,1.10694757]
[1722161621625,0.00833,67653.0,67652.0,1.10694757]
[1722161622980,0.08733,67653.0,67652.0,1.10694757]
[1722161628990,0.08733,67653.0,67652.0,1.34345157]
[1722161629279,0.08733,67653.0,67652.0,1.10694757]
[1722161630320,0.08733,67653.0,67652.0,1.34345157]
[1722161630723,0.08733,67653.0,67652.0,1.10694757]
[1722161630927,0.08733,67653.0,67652.0,1.34345157]
[1722161631169,0.08733,67653.0,67652.0,1.10694757]
[1722161631570,0.00833,67653.0,67652.0,1.27676757]
[1722161631784,0.00833,67653.0,67652.0,1.78868691]
[1722161632298,0.00833,67653.0,67652.0,1.76657501]
[1722161632600,0.00833,67653.0,67652.0,1.76657682]
[1722161632935,0.00833,67653.0,67652.0,2.00308082]
[1722161633139,0.00833,67653.0,67652.0,1.76657682]
[1722161633344,0.00833,67653.0,67652.0,1.76657305]
[1722161633516,0.00833,67653.0,67652.0,2.00307705]
[1722161633689,0.00833,67653.0,67652.0,1.76657305]
[1722161633890,0.00833,67653.0,67652.0,1.76657436]
[1722161634292,0.00833,67653.0,67652.0,2.00307836]
[1722161634527,0.00833,67653.0,67652.0,1.76657436]
[1722161635093,0.00833,67653.0,67652.0,1.59957157]
[1722161635539,0.00833,67653.0,67652.0,1.76657349]
[1722161636156,0.00833,67653.0,67652.0,1.73857349]
[1722161636334,0.00833,67653.0,67652.0,1.61575623]
[1722161636544,0.00833,67653.0,67652.0,1.59957157]
[1722161637684,0.00833,67653.0,67652.0,1.83607557]
[1722161637887,0.00833,67653.0,67652.0,1.59957157]
[1722161641701,0.00833,67653.0,67652.0,1.45537157]
[1722161642550,0.15043,67653.0,67652.0,1.45537157]
[1722161644275,0.15043,67653.0,67652.0,1.43237157]
[1722161645127,0.15043,67653.0,67652.0,1.19586757]
[1722161646075,0.15043,67653.0,67652.0,1.10694757]
[1722161647740,0.15043,67653.0,67652.0,1.09294757]
[1722161649115,0.15043,67653.0,67652.0,1.11594757]
[1722161649539,0.15043,67653.0,67652.0,1.09194757]
[1722161649751,0.15043,67653.0,67652.0,1.08994757]
[1722161650186,0.15043,67653.0,67652.0,1.10094757]
[1722161659914,0.15043,67653.0,67652.0,0.86444357]
[1722161660253,0.15043,67653.0,67652.0,0.241176]
[1722161660475,0.15043,67653.0,67652.0,0.141176]
[1722161660708,0.15043,67653.0,67652.0,0.022924]
[1722161660873,0.15043,67653.0,67652.0,0.37768]
[1722161664856,0.15043,67653.0,67652.0,0.141176]
[1722161665467,0.15043,67653.0,67652.0,0.37768]
[1722161667307,0.2074953,67653.0,67652.0,0.37768]
[1722161668250,0.15043,67653.0,67652.0,0.37768]
[1722161668455,0.2075762,67653.0,67652.0,0.37768]
[1722161671560,0.14543,67653.0,67652.0,0.37768]
[1722161671915,0.20255193,67653.0,67652.0,0.37768]
[1722161673898,0.20253933,67653.0,67652.0,0.37768]
[1722161674726,0.14543,67653.0,67652.0,0.37768]
[1722161675074,0.20252839,67653.0,67652.0,0.37768]
[1722161677984,0.20252839,67653.0,67652.0,0.614184]
[1722161680272,0.21788472,67653.0,67652.0,0.022924]
[1722161680641,0.21788472,67653.0,67652.0,0.141176]
[1722161680841,0.16078633,67653.0,67652.0,0.141176]
[1722161681063,0.21812792,67653.0,67652.0,0.141176]
[1722161681411,0.21812792,67653.0,67652.0,0.022924]
[1722161681684,0.21840141,67653.0,67652.0,0.37768]
[1722161682047,0.21840141,67653.0,67652.0,0.614184]
[1722161682048,0.20304508,67653.0,67652.0,0.614184]
[1722161682253,0.20303543,67653.0,67652.0,0.614184]
[1722161682659,0.14283543,67653.0,67652.0,0.614184]
[1722161683060,0.06093543,67653.0,67652.0,0.614184]
[1722161683381,0.06093543,67653.0,67652.0,1.23476757]
[1722161683382,0.00333,67653.0,67652.0,1.23476757]
[1722161683586,0.00333,67653.0,67652.0,1.59427157]
[1722161688225,0.00333,67653.0,67652.0,1.83277557]
[1722161688484,1e-06,67653.0,67652.0,2.06727957]
[1722161688680,1e-06,67653.0,67652.0,2.19009932]
[1722161689232,0.002,67659.0,67658.0,1.539139]
[1722161689439,1e-06,67659.0,67658.0,2.50854526]
[1722161689737,1e-06,67659.0,67658.0,2.63175231]
[1722161690031,1e-06,67659.0,67658.0,2.58644594]
[1722161690399,1e-06,67659.0,67658.0,2.54235587]
[1722161690579,1e-06,67659.0,67658.0,2.6004244]
[1722161690994,1e-06,67659.0,67658.0,2.64922664]
[1722161691186,1e-06,67659.0,67658.0,2.6284244]
[1722161691425,1e-06,67659.0,67658.0,3.23979209]
[1722161691627,1e-06,67659.0,67658.0,3.15372356]
[1722161691825,1e-06,67659.0,67658.0,3.37571953]
[1722161692094,0.00833,67676.0,67675.0,1.152828]
[1722161692400,0.00833,67676.0,67675.0,1.57098757]
[1722161692570,0.00833,67676.0,67675.0,1.61978981]
[1722161692912,0.00833,67676.0,67675.0,1.57098757]
[1722161694133,0.00833,67676.0,67675.0,1.48218757]
[1722161694483,0.00833,67676.0,67675.0,1.46818757]
[1722161694836,0.00833,67676.0,67675.0,1.57598757]
[1722161695047,0.00833,67676.0,67675.0,1.56198757]
[1722161695651,0.00833,67676.0,67675.0,1.57598757]
[1722161696055,0.00833,67676.0,67675.0,1.59898757]
[1722161696654,0.00833,67676.0,67675.0,1.82141157]
[1722161696855,0.00833,67676.0,67675.0,1.82341157]
[1722161697117,0.00833,67676.0,67675.0,1.58498757]
[1722161697256,0.00833,67676.0,67675.0,1.80741157]
[1722161697459,0.00833,67676.0,67675.0,1.82141157]
[1722161697658,0.00833,67676.0,67675.0,1.59898757]
[1722161697882,0.00833,67676.0,67675.0,1.80741157]
[1722161698276,0.00833,67676.0,67675.0,1.83541157]
[1722161698481,0.00833,67676.0,67675.0,1.83741157]
[1722161698680,0.00833,67676.0,67675.0,1.80941157]
[1722161699146,0.00833,67676.0,67675.0,1.82341157]
[1722161699862,0.00890428,67695.0,67694.0,0.118178]
[1722161700075,0.00833,67698.0,67697.0,0.44344]
[1722161700315,0.00833,67698.0,67697.0,1.16639357]
[1722161700517,0.00833,67698.0,67697.0,1.42574057]
[1722161700670,0.00833,67698.0,67697.0,1.16639357]
[1722161701901,0.00833,67698.0,67697.0,1.18039357]
[1722161702104,0.00833,67698.0,67697.0,1.59824057]
[1722161702599,0.00833,67698.0,67697.0,1.97158223]
[1722161705469,0.00833,67698.0,67697.0,1.59824057]
[1722161705768,0.00833,67698.0,67697.0,1.83658757]
[1722161707186,0.00833,67698.0,67697.0,1.83458757]
[1722161707542,0.00833,67715.0,67705.0,1.388674]
[1722161707741,0.00833,67715.0,67705.0,1.66193357]
[1722161707962,0.00833,67715.0,67705.0,2.18177523]
[1722161708172,0.00833,67715.0,67710.0,0.20707]
[1722161708380,0.00833,67715.0,67710.0,1.38042298]
[1722161708625,0.00833,67715.0,67710.0,1.61672398]
[1722161708776,0.0655,67714.0,67710.0,1.85302498]
[1722161709205,0.00833,67715.0,67710.0,1.85302498]
[1722161710104,0.083,67711.0,67710.0,1.59372398]
[1722161710319,0.083,67711.0,67710.0,1.60772398]
[1722161710719,0.083,67711.0,67710.0,1.62172398]
[1722161710950,0.0038,67711.0,67710.0,1.62172398]
[1722161711137,0.0038,67711.0,67710.0,1.88102498]
[1722161711328,0.0038,67711.0,67710.0,2.02552498]
[1722161711669,0.002,67719.0,67710.0,2.02552498]
[1722161711670,0.002,67719.0,67718.0,0.587829]
[1722161711812,0.002,67719.0,67718.0,1.68397623]
[1722161712012,1e-06,67719.0,67718.0,2.17952223]
[1722161712267,0.002,67739.0,67718.0,2.17952223]
[1722161712268,0.002,67739.0,67726.0,0.979981]
[1722161712498,0.002,67739.0,67738.0,0.67943]
[1722161712646,0.002,67739.0,67738.0,1.06589357]
[1722161712843,0.002,67739.0,67738.0,0.97697357]
[1722161713224,0.002,67739.0,67738.0,1.06579357]
[1722161713783,0.002,67739.0,67738.0,1.07379357]
[1722161714083,0.002,67739.0,67738.0,0.98497357]
[1722161714414,0.0675,67739.0,67738.0,0.126102]
[1722161714713,0.1467,67739.0,67738.0,0.016]
[1722161714984,0.1467,67739.0,67738.0,0.134102]
[1722161715627,0.1467,67739.0,67738.0,0.370306]
[1722161716442,0.1467,67739.0,67738.0,0.134102]
[1722161716663,0.1467,67739.0,67738.0,0.370306]
[1722161717109,0.1467,67739.0,67738.0,0.60651]
[1722161717802,0.0812,67739.0,67738.0,0.99297357]
[1722161718005,0.002,67739.0,67738.0,1.08179357]
[1722161719220,0.002,67739.0,67738.0,1.31799757]
[1722161719921,0.002,67739.0,67738.0,1.08179357]
[1722161720552,0.002,67739.0,67738.0,1.58369757]
[1722161721741,0.002,67739.0,67738.0,1.20479357]
[1722161721945,0.002,67739.0,67738.0,1.08497357]
[1722161722168,0.002,67739.0,67738.0,1.09897357]